Cogmind - Beta 15 @@@ ROGUE MODE // 2025.08.06 @ 15:08:37 Player: C0-2MO Result: Destroyed by T3-79I(R) with Subdweller Beam Cannon Performance ------------- Evolutions (0) 0 Regions Visited (2) 400 Robots Destroyed (12) 60 Value Destroyed (347) 347 Prototype IDs (13) 260 Alien Tech Used (0) 0 Bonus (-12) -12 TOTAL SCORE: 1055 Bonus ------- Friendly Fire -12 Cogmind --------- Core Integrity 0/250 Matter 290/300 Energy 18/100 System Corruption 0% Temperature Cool (35) Movement Treading (480) Ox4 Location -10/Subcaves Parts ------- > --- POWER (1) -------- (None) > --- PROPULSION (2) --- Improved Treads Subdweller Monowheel > --- UTILITY (2) ------ Huge Storage Unit Seismic Detector > --- WEAPON (2) ------- Subdweller Laser Subdweller Beam Cannon > --- INVENTORY (25) --- Subdweller Power Source Subdweller Power Source Subdweller Monowheel Subdweller Monowheel Flightbrick Subdweller Optics Subdweller Optics Propulsion Shielding Particle Cannon Battle Rifle Battle Cannon Grenade Launcher Mining Laser Peak State ------------ > --- POWER ------------ Light Nuclear Core > --- PROPULSION ------- Improved Treads Subdweller Monowheel > --- UTILITY ---------- Huge Storage Unit Seismic Detector > --- WEAPON ----------- Particle Cannon Battle Cannon > --- INVENTORY -------- Subdweller Power Source Subdweller Power Source Subdweller Monowheel Subdweller Monowheel Flightbrick Subdweller Optics Subdweller Optics Propulsion Shielding Grenade Launcher Mining Laser [Rating: 18] Favorites ----------- Power Light Nuclear Core Power Core Light Nuclear Core Propulsion Improved Treads Treads Improved Treads Wheel Subdweller Monowheel Utility Seismic Detector Device Seismic Detector Storage Huge Storage Unit Weapon Light Assault Rifle Energy Gun Subdweller Laser Energy Cannon Particle Cannon Ballistic Gun Light Assault Rifle Ballistic Cannon Battle Cannon Build | -11 -10 -10 ------- Run | Yrd Mat Sub Slots Evolved . | . . . Power . | . . . Propulsion . | . . . Utility . | . . . Weapon . | . . . Parts Attached 15 | 5 5 5 Power 1 | . . 1 Engine . | . . . Core 1 | . . 1 Reactor . | . . . Propulsion 6 | 2 3 1 Treads 4 | 2 2 . Leg . | . . . Wheel 2 | . 1 1 Hover . | . . . Flight . | . . . Utility 2 | 1 1 . Device 1 | 1 . . Storage 1 | . 1 . Processor . | . . . Hackware . | . . . Protection . | . . . Artifact . | . . . Weapon 6 | 2 1 3 Energy Gun 2 | 1 . 1 Energy Cannon 2 | . 1 1 Ballistic Gun 1 | 1 . . Ballistic Cannon 1 | . . 1 Launcher . | . . . Special Weapon . | . . . Impact Weapon . | . . . Slashing Weapon . | . . . Piercing Weapon . | . . . Special Melee Weapon . | . . . Unidentified Prototypes . | . . . Parts Lost 4 | . . 4 Power 1 | . . 1 Propulsion 2 | . . 2 Utility . | . . . Weapon 1 | . . 1 Highest Loss Streak 2 | . . 2 To Critical Strikes . | . . . Average Backups 8 | . 3 9 Power 1 | . . 1 Propulsion 1 | . . 1 Utility 2 | . 1 2 Weapon 2 | . 1 3 Tool/Special . | . . . Unused Backups 11 | . . 11 Power 2 | . . 2 Propulsion 3 | . . 3 Utility 3 | . . 3 Weapon 3 | . . 3 Tool/Special . | . . . Average Slot Usage (%) 84 | . 72 86 Core 1 | . . 1 Treads 20 | . 26 19 Wheel 7 | . 1 8 Device 14 | . 14 14 Storage 12 | . 1 14 Energy Gun 5 | . 11 4 Energy Cannon 12 | . 2 14 Ballistic Gun 7 | . 14 6 Ballistic Cannon 2 | . . 2 Peak Build Rating 18 | 5 9 18 Average Rating 11 | 3 5 12 On Entrance 4 | . 5 8 Naked Turns . | . . . Heaviest Build 97 | 3 86 97 Greatest Support 46 | 3 46 46 Greatest Overweight (x) 8 | . 8 8 Average Overweight (x) 2 | . . 3 Largest Inventory Capacity 25 | 5 25 25 Average Capacity 22 | 5 7 25 Most Carried 16 | . 5 16 Average Carried 9 | . 3 10 Final Capacity 25 | 5 25 25 Final Carried 16 | . 5 16 Class Distribution -------------------- 100% | Mutant Dominant Class ---------------- Mutant | -10/Materials Mutant | -10/Subcaves Resources | -11 -10 -10 ----------- Run | Yrd Mat Sub Matter Collected 429 | 255 30 144 Remotely . | . . . Salvage Created 424 | 73 19 332 Parts 22 | 5 2 15 Haulers Intercepted . | . . . Recyclers Shooed 2 | 1 1 . Parts Field Recycled . | . . . Retrieved Matter . | . . . Parts Self-Destructed 16 | . . 16 Prevented 1 | . . 1 Kills | -11 -10 -10 ------- Run | Yrd Mat Sub Combat Hostiles Destroyed 9 | . . 9 Guns 1 | . . 1 Cannons 8 | . . 8 Classes Destroyed 7 | 2 1 4 Builder 1 | . 1 . Tunneler 1 | 1 . . Recycler 1 | 1 . . Swarmer 1 | . . 1 Grunt 1 | . . 1 Sentry 1 | . . 1 Subdweller 6 | . . 6 Best Kill Streak 2 | 2 1 2 Combat Bots Only 2 | . . 2 Max Kills in Single Turn 1 | 1 1 1 Gunslinging . | . . . Exploded . | . . . Melee . | . . . Uniques/NPCs Destroyed . | . . . Combat | -11 -10 -10 -------- Run | Yrd Mat Sub Hostile Shots Fired 79 | . 12 67 Missed 21 | . . 21 Hits 58 | . 12 46 Projectile 58 | . 12 46 Damage Taken 1111 | . 180 931 Core 257 | . 26 231 Absorbed by Shields . | . . . Core Remaining (%) 100 | 100 . . Volleys Fired 101 | 5 20 76 Largest 2 | 2 2 2 Hottest 140 | 60 88 140 Shots Fired 154 | 10 40 104 Gun 65 | 10 35 20 Cannon 89 | . 5 84 Launcher . | . . . Special . | . . . Kinetic 51 | 5 20 26 Thermal 103 | 5 20 78 Explosive . | . . . Electromagnetic . | . . . Robot Hit Streak 28 | 8 9 28 Robot Miss Streak 4 | 1 2 4 Penetration Max . | . . . Secondary Targets . | . . . Shots Hit Robots 94 | 9 27 58 Core Hits 26 | 3 8 15 Critical Kills . | . . . Critical Parts Destroyed . | . . . Critical Strikes . | . . . Melee Attacks . | . . . Impact . | . . . Slashing . | . . . Piercing . | . . . Sneak Attacks . | . . . Combat Hostiles . | . . . Follow-up Attacks . | . . . Damage Inflicted 1548 | 87 297 1164 Guns 460 | 87 235 138 Cannons 1088 | . 62 1026 Explosions . | . . . Melee . | . . . Ramming . | . . . Kinetic 382 | 42 115 225 Thermal 1166 | 45 182 939 Explosive . | . . . Electromagnetic . | . . . Impact . | . . . Slashing . | . . . Piercing . | . . . Highest Corruption . | . . . Average Corruption . | . . . Corruption Purged . | . . . Corruption Blocked . | . . . Overload Shots . | . . . Overflow Damage . | . . . Projectiles . | . . . Explosions . | . . . Melee . | . . . Knockbacks 2 | . . 2 Impact . | . . . Kinetic 2 | . . 2 Secondary . | . . . Self-Inflicted Damage . | . . . Shots . | . . . Rammed . | . . . Targets Rammed . | . . . Kicked . | . . . Crushed . | . . . Highest Temperature 89 | 20 89 26 Average Temperature 18 | 9 25 8 Received Heat Transfer 309 | . 90 219 Siege Activations . | . . . Martial Activations . | . . . Shielding Activations . | . . . Robots Disrupted . | . . . Combat Hostiles . | . . . Robots Corrupted . | . . . Combat Hostiles . | . . . Parts Fried . | . . . Impact Corruptions . | . . . Robots Melted . | . . . Combat Hostiles . | . . . Parts Melted 2 | . . 2 Heat Transferred 2004 | 100 386 1518 Parts Sabotaged . | . . . Parts Stolen . | . . . Parts Stripped . | . . . Power Chain Reactions . | . . . Alert | -11 -10 -10 ------- Run | Yrd Mat Sub Maximum Alert Level . | . . . Low Security (%) 100 | 100 100 . Level 1 . | . . . Level 2 . | . . . Level 3 . | . . . Level 4 . | . . . Level 5 . | . . . High Security . | . . . Max Security . | . . . Peak Influence 34 | 5 34 . Initial . | . . . Average 7 | 1 8 . Influence Increases 211 | 10 96 105 Destroy 0b10 Robot/C 60 | . . 60 Destroy 0b10 Robot/NC 15 | 10 5 . Successful Hack 31 | . 31 . Select Force Hacks 30 | . 30 . Lose Combat Pursuer 75 | . 30 45 Influence Decreases 211 | 10 96 105 Time Decay 201 | 10 96 95 Lost Part 10 | . . 10 Squads Dispatched 1 | . 1 . Investigation 1 | . 1 . Extermination . | . . . Reinforcement . | . . . Assault . | . . . Garrison . | . . . Intercept . | . . . Searches Triggered . | . . . Construction Impeded . | . . . Haulers Reinforced . | . . . Active Scanning Responses . | . . . Cargo Convoy Interrupts . | . . . Stealth | -11 -10 -10 --------- Run | Yrd Mat Sub Distress Signals 1 | . 1 . Communications Jammed . | . . . Distress Signals . | . . . Times Spotted 23 | . 8 15 Peak Tracking Total 3 | . 3 2 Tactical Retreats 3 | . 1 2 Traps | -11 -10 -10 ------- Run | Yrd Mat Sub Traps Triggered 1 | . 1 . Indirectly . | . . . Trap Hack Attempts . | . . . Triggered . | . . . Disarmed . | . . . Reprogrammed . | . . . Reused . | . . . Traps Extracted . | . . . Installed . | . . . Triggered . | . . . Machines | -11 -10 -10 ---------- Run | Yrd Mat Sub Machines Disabled 1 | . . 1 Max in Single Turn 1 | . . 1 Machines Repaired . | . . . Machines Dismantled . | . . . Machines Sabotaged . | . . . Overloaded Fab Kills . | . . . Hacking | -11 -10 -10 --------- Run | Yrd Mat Sub Machines Accessed 9 | . 7 2 Terminals 6 | . 6 . Fabricators . | . . . Repair Stations . | . . . Recycling Units 1 | . 1 . Scanalyzers . | . . . Garrison Access . | . . . Total Hacks 21 | . 16 5 Successful 14 | . 9 5 Failed 7 | . 7 . Catastrophic 2 | . 2 . Database Lockouts . | . . . Manual 15 | . 15 . Terminals 15 | . 15 . Fabricators . | . . . Repair Stations . | . . . Recycling Units 1 | . 1 . Scanalyzers . | . . . Garrison Access . | . . . Terminal Hacks 6 | . 1 5 Record 4 | . . 4 Prototype ID Bank 1 | . 1 . Proto ID Catalog 1 | . . 1 Fabricator Hacks . | . . . Repair Station Hacks . | . . . Recycling Unit Hacks . | . . . Scanalyzer . | . . . Garrison Access Hacks . | . . . Unauthorized Hacks 8 | . 8 . Terminals 7 | . 7 . Botnet 2 | . 2 . Skim 5 | . 5 . Fabricators . | . . . Repair Stations . | . . . Recycling Units 1 | . 1 . Tunnel 1 | . 1 . Scanalyzers . | . . . Garrison Access . | . . . Data Cores Recovered . | . . . Used . | . . . Hacking Detections 5 | . 5 . Full Trace Events . | . . . Feedback Events . | . . . Feedback Blocked . | . . . Robot Schematics Acquired . | . . . Robots Built . | . . . Authchips . | . . . Time . | . . . Total Robot Build Rating . | . . . Part Schematics Acquired . | . . . Parts Built . | . . . Authchips . | . . . Time . | . . . Total Part Build Rating . | . . . Parts Repaired . | . . . Time . | . . . Parts Recycled . | . . . Recycled Matter . | . . . Retrieved Matter . | . . . Retrieved Components . | . . . Parts Scanalyzed . | . . . Part Schematics Acquired . | . . . Parts Damaged . | . . . Bothacking | -11 -10 -10 ------------ Run | Yrd Mat Sub Used RIF Installer . | . . . Robots Hacked . | . . . Non-combat . | . . . Combat . | . . . Robot Hacks Applied . | . . . Relay Couplers Released . | . . . Fabnet Peak Effective % . | . . . Robots Rewired . | . . . Allies Hacked . | . . . Hacks Repelled . | . . . Allies | -11 -10 -10 -------- Run | Yrd Mat Sub Total Allies . | . . . Largest Group . | . . . Highest-Rated Group . | . . . Highest-Rated Ally . | . . . Total Orders . | . . . Ally Attacks . | . . . Total Damage . | . . . Kills . | . . . Allies Corrupted . | . . . Allies Melted . | . . . Intel | -11 -10 -10 ------- Run | Yrd Mat Sub Active Infowar (turns) 2198 | 20 308 1870 Seismic 2198 | 20 308 1870 Robot Analysis Total . | . . . Derelict Logs Recovered 1 | . . 1 Drone Launches . | . . . Drone Recoveries . | . . . Exploration | -11 -10 -10 ------------- Run | Yrd Mat Sub Turns Passed 2219 | 41 308 1870 Spaces Moved 1340 | 39 406 895 Core 421 | 39 382 . Treads 281 | . 11 270 Legs . | . . . Wheels 638 | . 13 625 Hover . | . . . Flight . | . . . Fastest Speed 50 | 50 50 150 Average Speed 140 | 50 57 181 Slowest Speed 400 | 50 200 400 Overloaded Moves . | . . . Propulsion Burnouts . | . . . Robots Hopped . | . . . Potential Cave-ins . | . . . Cave-ins Triggered . | . . . Exploration Rate (%) 41 | 3 62 60 Regions Visited 2 Branch Regions 1 Pre-discovered Areas 1 | . 1 . Known Exits Taken . | . . . Unknown Exits Taken 2 | 1 1 . Scrap Searched 4 | . . 4 Spaces Dug 8 | . . 8 Terrain Destroyed 13 | . . 13 Melee . | . . . Projectile 13 | . . 13 AOE . | . . . Terrain Rammed . | . . . Walls Destroyed . | . . . Machines Disabled . | . . . Actions | -11 -10 -10 --------- Run | Yrd Mat Sub Total 1533 | 48 445 1040 Wait 59 | . 6 53 Move 1338 | 38 405 895 Hop . | . . . Pick Up 13 | . 5 8 Fast Attach 11 | 5 2 4 Attach 3 | . 1 2 Detach 3 | . 1 2 Swap 2 | . 2 . Drop 3 | . 3 . Fire 101 | 5 20 76 Melee . | . . . Ram . | . . . Kick . | . . . Crush . | . . . Escape Stasis . | . . . Rewire . | . . . Trap . | . . . Miscellaneous . | . . . Route ------- -11/Scrapyard -10/Materials (discovered 3 exits: [*Mat] / [*Min] / *Sub) -10/Subcaves (discovered 3 exits: *Mat x2 / [*Rec]) History --------- Turn | Location | Event 13 | -11/Scrapyard | Discovered new exit (range 15) 42 | -11/Scrapyard | Entered Materials 43 | -10/Materials | Met a group of wandering Federalists 84 | -10/Materials | Discovered new exit (range 5) 138 | -10/Materials | Discovered new exit (range 12) 284 | -10/Materials | Learned location of 2 exits from Mines 334 | -10/Materials | Build established: Mutant 344 | -10/Materials | Discovered new exit (range 5) 350 | -10/Materials | Entered Subcaves 351 | -10/Subcaves | Continued accompanying wandering Federalists (5) 351 | -10/Subcaves | Approached by a straggling Scientist 472 | -10/Subcaves | Discovered new exit (range 14) 556 | -10/Subcaves | Lost 7 allies 1115 | -10/Subcaves | Discovered new exit (range 8) 1232 | -10/Subcaves | Core integrity fell below 50% 1348 | -10/Subcaves | Visited 4L-MR0's lab 1367 | -10/Subcaves | Found Flightbrick 1368 | -10/Subcaves | Learned Materials stockpile data 1547 | -10/Subcaves | Core integrity fell below 20% 1634 | -10/Subcaves | Shifting Twisted Machinery released Flamer 1645 | -10/Subcaves | Shifting Twisted Machinery released Sub. Laser 1798 | -10/Subcaves | Visited Clippyterm 1803 | -10/Subcaves | Identified exit to Materials 1937 | -10/Subcaves | Shifting Twisted Machinery released Mak. Laser 2164 | -10/Subcaves | A swath of the cavern ceiling suddenly collapsed 2220 | -10/Subcaves | Destroyed by T3-79I(R) with Subdweller Beam Cannon Last Messages --------------- data I collect to feed it, half the time it still manages to suggest unhelpful sample queries and responses. --DD-NU8 >>Record "^q" It looks like you're in search of a way out of here, would you like help? Loading 1 Subcaves exit... >>Record "Letterhead" It looks like you're writing a letter, sorry I don't know how to do that. >>Record! "Hexidium" It looks like you're searching for the Unchained HQ. I could tell you where it is but then I'd have to kill you. Mak. Laser falls loose from the Twisted Machinery. 02067_ 8O-9O2(u) builds Twisted Machinery. A swath of the cavern ceiling suddenly collapses. 02218_ 62-RV7(R) destroyed. Map ----- +----------------------------------------------------+ | ???????????????????????????????????????????? | | ???????????????????????????????????????????? | | ???????????????????????????????????????????? | | ??????????????????????? "??????????????????? | | ?????????????????????? ??????????????????? | | ?????????????????????? ??????????????????? | | ?????????????????????? ??????????????????# | | ??????????????????????# ?????????????????## | | ??????????????????????? #????????????????# | | ??????????????????????? ????????????????## | | ??????????????#???????? ##???????????????# | | ??????????????# ??????? #???????????????# | | ??????????????? ?????# ???????????????# | | ????????????????? ?#### #???????????????# | | ??????????????????# # #???????????????# | | ???????????????????"" #???????????????? | | ?????????????????????" ????????????????? | | ????????????????? ???? "#????????????????? | | ????????????????? #???##"#????????????????? | | ????????????????? ####"##????????????????? | | ??????????????? ? ##""""#????????????????? | | ???????????????# ? #""####????????????????? | | ????????????????#####"##???????????????????? | | ????????????????#"" ""#????????????????????? | | ????????????????#]#####????????????????????? | | ????????????????##R@!;#????????????????????? | | ?????????????????#[!;#;#???????????????????? | | ?????????????????#;#;;##???????????????????? | | ?????????????????#;"#;;#???????????????????? | | ?????????????????####;#####????????????????? | | ????????????????????#"#"# ##???????????????? | | ????????????????????#"" ##??????????????? | | ?????????????????##### #??????????????# | | ????????????????## ###?????????????## | | ????????????????# #??????????????## | | ???????????????## #??????????????# | | ???????????????# # ####?######?#### | | ???????????????# ## ### #""### ## | | ???????????????# % """" | | ???????????????# # & % " "" | | ???????????????## ### ######## # # ###### | | ???????????????# ##?###??????#######????# | | ???????????????# ###??????????????????### | | ???????????????## ###????????????????# | | ????????????????# #????????????????# | | ???????????????## ##???????????????## | | ????????#####??# ## #????????????### | | ????#####"%"##### #???????????????? | | ????# #### ""### ## ##???????????????? | | ????#" ####" "## ##?# #????????????????? | +----------------------------------------------------+ Best States ------------- Heat Dissipation 25 Energy Generation 14 Energy Capacity 160 Matter Stores 300 Matter Capacity 300 Sight Range 16 Terrain Scan Density 10 Evasion (%) 50 Recoil Reduction 2 Item Schematics ----------------- None Robot Schematics ------------------ None Fabricated ------------ Nothing Repaired ---------- Nothing Alien Tech Used ----------------- None Achievements -------------- None Challenges ------------ None Game ------ Seed MakeshiftThunderStreamer Manual? 0 Play Time 00:20:50 Cumulative 420.8 hours Start 2025.08.06 @ 14:52:37 End 2025.08.06 @ 15:08:37 Sessions 1 Manual Loads 0 Difficulty Rogue Special Mode None Game No. 193 Rogue 193 Adventurer 0 Explorer 0 Win Type - Total 30 Types 12/2/5/2/5/1/0/2/0/1 Lore% 93 Gallery% 84 Achievement% 78 Wizard Run 0 Options --------- Layout 1 ASCII 0 Keyboard 0 Movement Numpad Keybinds 0 Fullscreen 1 Font 24/Smallcaps Map View 50x35 Zoom Use 0% Tactical HUD 1 Map Filters NONE Filters NONE Steam 1 RUN: b9b53ebb-c9fa-4c48-a950-7b985656d784